[Event "9th RTU Rapid 2019"]
[Site "Riga"]
[Date "2019.08.04"]
[Round "5.12"]
[White "Shailesh, Dravid"]
[Black "Suleymenov, Alisher"]
[Result "1/2-1/2"]
[WhiteElo "2134"]
[BlackElo "2348"]
[PlyCount "259"]
[EventDate "2019.08.05"]
[EventType "swiss"]
[EventCountry "LAT"]
[TimeControl "5400+30"]
[WhiteClock "0:00:14"]
[BlackClock "0:01:01"]

1. e4 {[%emt 1:15:21]} e6 {[%emt 1:18:47]} 2. d4 {[%emt 0:00:30]} d5 {[%emt 0:00:26]} 3. Nc3 {[%emt 0:00:44]} Bb4 {[%emt 0:00:26]} 4. e5 {[%emt 0:00:28]} Ne7 {[%emt 0:00:26]} 5. Nf3 {[%emt 0:00:35]} c5 {[%emt 0:01:48]} 6. dxc5 {[%emt 0:00:26]} Nbc6 {[%emt 0:02:25]} 7. Bd3 {[%emt 0:00:27]} Ng6 {[%emt 0:00:41]} 8. O-O {[%emt 0:00:27]} O-O {[%emt 0:01:04]} 9. Na4 {[%emt 0:03:11]} Ba5 {[%emt 0:02:43]} 10. c3 {[%emt 0:01:12]} Bc7 {[%emt 0:00:38]} 11. Re1 {[%emt 0:01:01]} Ncxe5 {[%emt 0:00:51]} 12. Nxe5 {[%emt 0:00:34]} Nxe5 {[%emt 0:00:26]} 13. Bc2 {[%emt 0:02:13]} Qh4 {[%emt 0:01:23]} 14. g3 {[%emt 0:00:35]} Qh3 {[%emt 0:00:38]} 15. Qe2 {[%emt 0:01:18]} Bd7 {[%emt 0:02:01]} 16. f3 {[%emt 0:00:33]} Rfc8 {[%emt 0:01:16]} 17. Bf4 {[%emt 0:00:42]} Ng6 {[%emt 0:01:20]} 18. Bxc7 {[%emt 0:00:07]} Rxc7 19. b4 {[%emt 0:01:00]} Rac8 {[%emt 0:01:02]} 20. b5 {[%emt 0:01:45]} Re8 {[%emt 0:00:39]} 21. Bd3 {[%emt 0:00:57]} e5 {[%emt 0:00:48]} 22. Qf2 {[%emt 0:00:47]} Bc8 {[%emt 0:00:47]} 23. Rad1 {[%emt 0:00:38]} Qe6 {[%emt 0:00:35]} 24. Bc2 {[%emt 0:00:37]} Rd8 {[%emt 0:00:31]} 25. Nb2 {[%emt 0:00:33]} Qe7 {[%emt 0:00:32]} 26. Nd3 {[%emt 0:01:02]} f6 {[%emt 0:00:26]} 27. Bb3 {[%emt 0:00:33]} Kh8 {[%emt 0:00:36]} 28. h4 {[%emt 0:00:35]} Be6 {[%emt 0:00:29]} 29. h5 {[%emt 0:00:29]} Nf8 {[%emt 0:00:25]} 30. h6 {[%emt 0:01:26]} gxh6 {[%emt 0:00:26]} 31. Qe3 {[%emt 0:00:29]} Nd7 {[%emt 0:00:42]} 32. Qxh6 {[%emt 0:00:31]} Nxc5 {[%emt 0:00:28]} 33. Nxc5 {[%emt 0:00:34]} Qxc5+ {[%emt 0:00:27]} 34. Kg2 {[%emt 0:00:30]} Qe7 {[%emt 0:00:29]} 35. f4 {[%emt 0:00:54]} e4 {[%emt 0:00:35]} 36. f5 {[%emt 0:00:57]} Bg8 {[%emt 0:00:31]} 37. c4 {[%emt 0:00:37]} d4 {[%emt 0:00:32]} 38. Bc2 {[%emt 0:00:33]} e3 {[%emt 0:00:27]} 39. g4 {[%emt 0:01:06]} Rxc4 {[%emt 0:00:30]} 40. Bd3 {[%emt 0:00:27]} Rc7 {[%emt 0:00:30]} 41. g5 {[%emt 0:00:30]} Qg7 {[%emt 0:00:26]} 42. Qxf6 {[%emt 0:00:37]} Qxf6 {[%emt 0:00:26]} 43. gxf6 {[%emt 0:00:26]} Bxa2 {[%emt 0:00:32]} 44. Ra1 {[%emt 0:00:31]} Bd5+ {[%emt 0:00:28]} 45. Kg3 {[%emt 0:00:29]} b6 {[%emt 0:00:31]} 46. Kf4 {[%emt 0:00:28]} Bg8 {[%emt 0:00:37]} 47. Rac1 {[%emt 0:00:43]} Rc5 {[%emt 0:00:32]} 48. Ra1 {[%emt 0:00:34]} Rd7 {[%emt 0:00:29]} 49. Rec1 {[%emt 0:00:33]} Rf7 {[%emt 0:00:32]} 50. Kg5 {[%emt 0:00:36]} Rfc7 {[%emt 0:00:33]} 51. Rd1 {[%emt 0:00:42]} Re5 {[%emt 0:00:28]} 52. Kf4 {[%emt 0:00:30]} Re8 {[%emt 0:00:26]} 53. Rdc1 {[%emt 0:00:30]} Rec8 {[%emt 0:00:27]} 54. Rxc7 {[%emt 0:00:29]} Rxc7 {[%emt 0:00:25]} 55. Ke5 {[%emt 0:00:29]} Rd7 {[%emt 0:00:29]} 56. Rc1 {[%emt 0:00:32]} h5 {[%emt 0:00:38]} 57. Rc8 {[%emt 0:00:10]} Kh7 58. Re8 {[%emt 0:00:51]} h4 {[%emt 0:01:04]} 59. Re7+ {[%emt 0:00:26]} Rxe7+ {[%emt 0:00:26]} 60. fxe7 Bf7 61. f6+ {[%emt 0:00:57]} Kh6 {[%emt 0:00:53]} 62. Bc4 {[%emt 0:00:26]} e2 {[%emt 0:00:28]} 63. Bxe2 {[%emt 0:00:27]} h3 {[%emt 0:00:32]} 64. Kxd4 {[%emt 0:00:29]} h2 {[%emt 0:00:32]} 65. Bf3 {[%emt 0:00:26]} Kg5 {[%emt 0:00:25]} 66. Ke5 {[%emt 0:00:26]} Be8 {[%emt 0:00:34]} 67. Ke6 {[%emt 0:00:27]} Bxb5 {[%emt 0:00:26]} 68. Bd5 {[%emt 0:01:11]} Bc4 {[%emt 0:00:33]} 69. e8=Q {[%emt 0:01:01]} Bxd5+ {[%emt 0:00:27]} 70. Ke5 {[%emt 0:00:26]} h1=Q {[%emt 0:00:33]} 71. f7 {[%emt 0:00:32]} Bxf7 {[%emt 0:00:35]} 72. Qxf7 {[%emt 0:00:41]} Qa1+ {[%emt 0:00:36]} 73. Kd6 {[%emt 0:00:26]} Qd4+ {[%emt 0:00:30]} 74. Kc6 {[%emt 0:00:27]} Qc5+ {[%emt 0:00:26]} 75. Kb7 {[%emt 0:00:26]} a5 {[%emt 0:00:27]} 76. Qg7+ {[%emt 0:00:27]} Kf5 {[%emt 0:00:27]} 77. Qf7+ {[%emt 0:00:26]} Ke5 {[%emt 0:00:27]} 78. Qh5+ {[%emt 0:00:27]} Kd4 {[%emt 0:00:25]} 79. Qd1+ {[%emt 0:00:27]} Kc4 {[%emt 0:00:37]} 80. Qc2+ {[%emt 0:00:30]} Kd5 {[%emt 0:00:28]} 81. Qf5+ {[%emt 0:00:28]} Kd4 {[%emt 0:00:36]} 82. Qf4+ {[%emt 0:00:29]} Kc3 {[%emt 0:00:33]} 83. Qc1+ {[%emt 0:00:27]} Kd3 {[%emt 0:00:26]} 84. Qd1+ {[%emt 0:00:26]} Ke4 {[%emt 0:00:26]} 85. Qg4+ {[%emt 0:00:26]} Ke5 {[%emt 0:00:32]} 86. Qg5+ {[%emt 0:00:27]} Kd4 {[%emt 0:00:25]} 87. Qd2+ {[%emt 0:00:26]} Ke4 {[%emt 0:00:29]} 88. Qg2+ {[%emt 0:00:26]} Kd3 {[%emt 0:00:30]} 89. Qf1+ {[%emt 0:00:27]} Kd2 {[%emt 0:00:39]} 90. Qg2+ {[%emt 0:00:28]} Kc1 {[%emt 0:00:30]} 91. Qf1+ {[%emt 0:00:28]} Kb2 {[%emt 0:00:27]} 92. Qf6+ {[%emt 0:00:27]} Kb3 {[%emt 0:00:30]} 93. Qe6+ {[%emt 0:00:33]} Ka4 {[%emt 0:00:34]} 94. Qa2+ {[%emt 0:00:27]} Kb4 {[%emt 0:00:26]} 95. Qb2+ {[%emt 0:00:27]} Kc4 {[%emt 0:00:26]} 96. Qc2+ {[%emt 0:00:27]} Kd5 {[%emt 0:00:34]} 97. Qf5+ {[%emt 0:00:26]} Kd4 {[%emt 0:00:29]} 98. Qf2+ {[%emt 0:00:27]} Ke4 {[%emt 0:00:30]} 99. Qh4+ {[%emt 0:00:27]} Kd3 {[%emt 0:00:27]} 100. Qh7+ {[%emt 0:00:29]} Kc3 {[%emt 0:00:29]} 101. Qh3+ {[%emt 0:00:29]} Kb4 {[%emt 0:00:31]} 102. Qh4+ {[%emt 0:00:31]} Kb5 {[%emt 0:00:28]} 103. Qe4 {[%emt 0:00:58]} a4 {[%emt 0:00:36]} 104. Qb1+ {[%emt 0:00:36]} Ka5 {[%emt 0:00:37]} 105. Qe1+ {[%emt 0:00:27]} Kb5 {[%emt 0:00:28]} 106. Qb1+ {[%emt 0:00:27]} Qb4 {[%emt 0:00:36]} 107. Qf5+ {[%emt 0:00:38]} Qc5 {[%emt 0:00:29]} 108. Qb1+ {[%emt 0:00:26]} Qb4 {[%emt 0:00:31]} 109. Qf5+ {[%emt 0:00:26]} Kc4 {[%emt 0:00:28]} 110. Qe4+ {[%emt 0:00:34]} Kc3 {[%emt 0:00:29]} 111. Qe1+ {[%emt 0:00:27]} Kb3 {[%emt 0:00:32]} 112. Qb1+ {[%emt 0:00:26]} Kc4 {[%emt 0:00:26]} 113. Qe4+ {[%emt 0:00:27]} Kb5 {[%emt 0:00:28]} 114. Qf5+ {[%emt 0:00:44]} Kc4 {[%emt 0:00:28]} 115. Qe4+ {[%emt 0:00:27]} Kb3 {[%emt 0:00:31]} 116. Qb1+ {[%emt 0:00:26]} Kc3 {[%emt 0:00:31]} 117. Qe1+ {[%emt 0:00:26]} Kc4 {[%emt 0:00:28]} 118. Qe4+ {[%emt 0:00:27]} Kc5 {[%emt 0:00:32]} 119. Qe5+ {[%emt 0:00:43]} Kc4 {[%emt 0:00:26]} 120. Qe4+ {[%emt 0:00:28]} Kb5 {[%emt 0:00:36]} 121. Qe8+ {[%emt 0:01:30]} Kc4 {[%emt 0:00:34]} 122. Qe4+ {[%emt 0:00:26]} Kb3 {[%emt 0:00:29]} 123. Qb1+ {[%emt 0:00:27]} Kc3 {[%emt 0:00:25]} 124. Qe1+ {[%emt 0:00:26]} Kb3 {[%emt 0:00:27]} 125. Qb1+ {[%emt 0:00:26]} Kc4 {[%emt 0:00:25]} 126. Qe4+ {[%emt 0:00:27]} Kb5 {[%emt 0:00:26]} 127. Qe8+ {[%emt 0:00:26]} Kc5 {[%emt 0:00:49]} 128. Qe7+ {[%emt 0:00:40]} Kc4 {[%emt 0:00:29]} 129. Qe4+ {[%emt 0:00:27]} Kb5 {[%emt 0:00:27]} 130. Qe8+ {[%emt 0:00:28]} 1/2-1/2

[Event "9th RTU Rapid 2019"]
[Site "Riga"]
[Date "2019.08.04"]
[Round "5.13"]
[White "Maltsevskaya, Aleksandra"]
[Black "Golubovskis, Maksims"]
[Result "1-0"]
[WhiteElo "2321"]
[BlackElo "2081"]
[PlyCount "83"]
[EventDate "2019.08.05"]
[EventType "swiss"]
[EventCountry "LAT"]
[TimeControl "5400+30"]
[WhiteClock "0:01:42"]
[BlackClock "0:03:05"]

1. Nf3 {[%emt 1:15:23]} Nf6 {[%emt 1:15:32]} 2. g3 {[%emt 0:00:29]} b6 {[%emt 0:00:40]} 3. Bg2 {[%emt 0:00:29]} Bb7 {[%emt 0:00:27]} 4. O-O {[%emt 0:00:28]} e6 {[%emt 0:01:06]} 5. d3 {[%emt 0:00:28]} d5 {[%emt 0:00:36]} 6. Nbd2 {[%emt 0:00:27]} Be7 {[%emt 0:00:31]} 7. e4 {[%emt 0:00:27]} dxe4 {[%emt 0:00:42]} 8. Ng5 {[%emt 0:00:28]} O-O {[%emt 0:00:30]} 9. Ngxe4 {[%emt 0:00:27]} Nxe4 {[%emt 0:00:40]} 10. Nxe4 {[%emt 0:00:27]} Qc8 {[%emt 0:00:27]} 11. a4 {[%emt 0:01:45]} Nd7 {[%emt 0:00:59]} 12. a5 {[%emt 0:00:39]} f5 {[%emt 0:02:23]} 13. a6 {[%emt 0:02:49]} Bc6 {[%emt 0:04:41]} 14. Nf6+ {[%emt 0:00:54]} Nxf6 {[%emt 0:00:53]} 15. Bxc6 {[%emt 0:00:28]} Rb8 {[%emt 0:00:33]} 16. Qe2 {[%emt 0:00:36]} Bd6 {[%emt 0:01:11]} 17. d4 {[%emt 0:01:20]} Rf7 {[%emt 0:01:16]} 18. Re1 {[%emt 0:01:49]} Re7 {[%emt 0:00:28]} 19. Qc4 {[%emt 0:01:30]} Kh8 {[%emt 0:01:20]} 20. Bg5 {[%emt 0:00:38]} e5 {[%emt 0:01:02]} 21. dxe5 {[%emt 0:01:04]} Rxe5 {[%emt 0:01:25]} 22. Rxe5 {[%emt 0:00:36]} Bxe5 {[%emt 0:00:27]} 23. Re1 {[%emt 0:00:27]} h6 {[%emt 0:00:38]} 24. Bxf6 {[%emt 0:00:43]} gxf6 {[%emt 0:00:37]} 25. f4 {[%emt 0:00:42]} b5 {[%emt 0:00:52]} 26. Qd5 {[%emt 0:02:24]} Bxb2 {[%emt 0:00:38]} 27. Re8+ {[%emt 0:00:36]} Qxe8 {[%emt 0:00:27]} 28. Bxe8 {[%emt 0:00:28]} Rxe8 {[%emt 0:00:28]} 29. Qxb5 {[%emt 0:00:51]} Bd4+ {[%emt 0:00:27]} 30. Kg2 {[%emt 0:00:26]} Re7 {[%emt 0:00:42]} 31. Qxf5 {[%emt 0:01:45]} Kg7 {[%emt 0:00:27]} 32. Qg4+ {[%emt 0:00:30]} Kf7 {[%emt 0:00:28]} 33. Qf3 {[%emt 0:00:42]} c5 {[%emt 0:00:44]} 34. Kh3 {[%emt 0:00:34]} f5 {[%emt 0:00:39]} 35. Qh5+ {[%emt 0:00:28]} Ke6 {[%emt 0:00:26]} 36. Qxh6+ {[%emt 0:00:31]} Bf6 {[%emt 0:00:27]} 37. Qg6 {[%emt 0:00:35]} Rg7 {[%emt 0:00:55]} 38. Qe8+ {[%emt 0:00:28]} Be7 {[%emt 0:00:27]} 39. Qc8+ {[%emt 0:00:41]} Kf6 {[%emt 0:00:40]} 40. Qc6+ {[%emt 0:00:29]} Kf7 {[%emt 0:00:28]} 41. Qb7 {[%emt 0:00:27]} Rh7+ {[%emt 0:00:29]} 42. Kg2 {[%emt 0:00:27]} 1-0

[Event "9th RTU Rapid 2019"]
[Site "Riga"]
[Date "2019.08.04"]
[Round "5.14"]
[White "Radkov, Bazhen D."]
[Black "Nesteretz, Anatoliy"]
[Result "1-0"]
[WhiteElo "2133"]
[BlackElo "2317"]
[PlyCount "79"]
[EventDate "2019.08.05"]
[EventType "swiss"]
[EventCountry "LAT"]
[TimeControl "5400+30"]
[WhiteClock "0:00:08"]
[BlackClock "0:00:13"]

1. d4 {[%emt 1:15:24]} g6 {[%emt 1:15:23]} 2. c4 {[%emt 0:00:42]} Bg7 {[%emt 0:00:27]} 3. Nc3 {[%emt 0:00:27]} d6 {[%emt 0:01:06]} 4. Nf3 {[%emt 0:01:02]} Bg4 {[%emt 0:00:58]} 5. d5 {[%emt 0:01:58]} Nf6 {[%emt 0:02:20]} 6. Nd4 {[%emt 0:03:05]} O-O {[%emt 0:00:48]} 7. h3 {[%emt 0:00:54]} Bc8 {[%emt 0:01:05]} 8. e4 {[%emt 0:00:32]} e5 {[%emt 0:01:03]} 9. dxe6 {[%emt 0:04:42]} fxe6 {[%emt 0:00:42]} 10. Be2 {[%emt 0:00:27]} a5 {[%emt 0:07:09]} 11. O-O {[%emt 0:00:51]} Na6 {[%emt 0:00:26]} 12. Re1 {[%emt 0:00:44]} Nc5 {[%emt 0:00:28]} 13. Bf1 {[%emt 0:00:27]} Nh5 {[%emt 0:00:51]} 14. Be3 {[%emt 0:01:43]} e5 {[%emt 0:01:55]} 15. Nc2 {[%emt 0:00:45]} Ne6 {[%emt 0:00:47]} 16. Kh2 {[%emt 0:00:50]} c5 {[%emt 0:01:07]} 17. g3 {[%emt 0:02:26]} Nd4 {[%emt 0:00:32]} 18. Bg2 {[%emt 0:00:27]} Be6 {[%emt 0:01:20]} 19. Nd5 {[%emt 0:00:31]} Rb8 {[%emt 0:00:28]} 20. b3 {[%emt 0:00:35]} b5 {[%emt 0:00:28]} 21. cxb5 {[%emt 0:00:27]} Rxb5 {[%emt 0:00:28]} 22. Na3 {[%emt 0:00:29]} Rb8 {[%emt 0:00:39]} 23. Nc4 {[%emt 0:00:30]} Nf6 {[%emt 0:00:40]} 24. Qd2 {[%emt 0:01:14]} Nxd5 {[%emt 0:00:42]} 25. exd5 {[%emt 0:00:28]} Bf5 {[%emt 0:00:28]} 26. Rac1 {[%emt 0:00:37]} Ra8 {[%emt 0:00:27]} 27. f4 {[%emt 0:00:40]} exf4 {[%emt 0:00:35]} 28. Bxf4 {[%emt 0:00:28]} Ra6 {[%emt 0:00:26]} 29. Bg5 {[%emt 0:00:38]} Bf6 {[%emt 0:00:29]} 30. Bh6 {[%emt 0:00:26]} Bg7 {[%emt 0:00:30]} 31. Bg5 {[%emt 0:00:30]} Bf6 {[%emt 0:00:26]} 32. Bh6 {[%emt 0:00:28]} Bg7 {[%emt 0:00:26]} 33. Bg5 {[%emt 0:00:28]} Bf6 {[%emt 0:00:33]} 34. Bh6 {[%emt 0:00:33]} Rf7 {[%emt 0:00:27]} 35. Nxa5 {[%emt 0:00:47]} g5 {[%emt 0:00:39]} 36. Nc6 {[%emt 0:00:30]} Qa8 {[%emt 0:00:31]} 37. Nxd4 {[%emt 0:00:33]} Bxd4 {[%emt 0:00:31]} 38. Qxg5+ {[%emt 0:00:27]} Kh8 {[%emt 0:00:25]} 39. Re7 {[%emt 0:00:32]} Ra7 {[%emt 0:00:37]} 40. Rxa7 {[%emt 0:00:30]} 1-0

[Event "9th RTU Rapid 2019"]
[Site "Riga"]
[Date "2019.08.04"]
[Round "5.15"]
[White "Gudovskis, Konstantins"]
[Black "Kiik, Kalle"]
[Result "0-1"]
[WhiteElo "2015"]
[BlackElo "2308"]
[PlyCount "89"]
[EventDate "2019.08.05"]
[EventType "swiss"]
[EventCountry "LAT"]
[TimeControl "5400+30"]
[WhiteClock "0:03:52"]
[BlackClock "0:00:06"]

1. d4 {[%emt 1:15:22]} d5 {[%emt 1:15:22]} 2. c4 {[%emt 0:00:27]} e5 {[%emt 0:00:28]} 3. dxe5 {[%emt 0:00:28]} d4 {[%emt 0:00:26]} 4. Nf3 {[%emt 0:00:28]} Nc6 {[%emt 0:00:27]} 5. g3 {[%emt 0:00:28]} Nge7 {[%emt 0:00:27]} 6. Bg2 {[%emt 0:00:38]} Ng6 {[%emt 0:00:28]} 7. Nbd2 {[%emt 0:00:49]} Ngxe5 {[%emt 0:00:30]} 8. a3 {[%emt 0:00:31]} a5 {[%emt 0:00:41]} 9. Nxe5 {[%emt 0:00:47]} Nxe5 {[%emt 0:00:28]} 10. Nf3 {[%emt 0:00:30]} Nxf3+ {[%emt 0:00:34]} 11. Bxf3 {[%emt 0:00:43]} Be7 {[%emt 0:00:27]} 12. e3 {[%emt 0:01:20]} c5 {[%emt 0:01:15]} 13. exd4 {[%emt 0:03:04]} cxd4 {[%emt 0:00:27]} 14. Bf4 {[%emt 0:01:13]} O-O {[%emt 0:00:35]} 15. O-O {[%emt 0:00:39]} Bf6 {[%emt 0:00:29]} 16. Re1 {[%emt 0:00:30]} a4 {[%emt 0:02:11]} 17. Bd5 {[%emt 0:01:35]} Bf5 {[%emt 0:01:02]} 18. Be5 {[%emt 0:01:49]} d3 {[%emt 0:00:48]} 19. Qd2 {[%emt 0:02:32]} Re8 {[%emt 0:01:37]} 20. Qc3 {[%emt 0:01:10]} Rxe5 {[%emt 0:02:02]} 21. Rxe5 {[%emt 0:00:33]} Qd6 {[%emt 0:00:34]} 22. Rxf5 {[%emt 0:02:27]} Bxc3 {[%emt 0:00:31]} 23. bxc3 {[%emt 0:00:27]} Rf8 {[%emt 0:00:46]} 24. Rf3 {[%emt 0:00:51]} g6 {[%emt 0:00:48]} 25. Rxd3 {[%emt 0:00:29]} Kg7 {[%emt 0:00:28]} 26. Rdd1 {[%emt 0:01:58]} b6 {[%emt 0:00:36]} 27. Rdb1 {[%emt 0:00:42]} Qf6 {[%emt 0:00:56]} 28. Rc1 {[%emt 0:00:40]} Re8 {[%emt 0:00:32]} 29. Ra2 {[%emt 0:00:29]} Re5 {[%emt 0:00:35]} 30. Rb2 {[%emt 0:00:41]} h5 {[%emt 0:00:32]} 31. h4 {[%emt 0:00:34]} g5 {[%emt 0:00:26]} 32. hxg5 {[%emt 0:00:26]} Rxg5 {[%emt 0:00:27]} 33. Rcb1 {[%emt 0:00:37]} Qxc3 {[%emt 0:01:17]} 34. Rxb6 {[%emt 0:00:40]} Qxa3 {[%emt 0:00:44]} 35. Kg2 {[%emt 0:00:47]} Qc5 {[%emt 0:00:49]} 36. R6b5 {[%emt 0:00:28]} Qd4 {[%emt 0:00:52]} 37. Rb7 {[%emt 0:00:31]} Rf5 {[%emt 0:00:29]} 38. Bf3 {[%emt 0:00:27]} a3 {[%emt 0:01:34]} 39. Rd1 {[%emt 0:00:30]} Qxc4 {[%emt 0:01:09]} 40. Rdd7 {[%emt 0:00:30]} a2 {[%emt 0:00:41]} 41. Bd5 {[%emt 0:00:32]} Rxd5 {[%emt 0:01:08]} 42. Rxf7+ {[%emt 0:00:26]} Kg6 {[%emt 0:00:26]} 43. Rg7+ {[%emt 0:00:31]} Kf6 {[%emt 0:00:26]} 44. f4 {[%emt 0:00:35]} Rd2+ {[%emt 0:00:38]} 45. Kf3 {[%emt 0:00:07]} 0-1

[Event "9th RTU Rapid 2019"]
[Site "Riga"]
[Date "2019.08.04"]
[Round "5.16"]
[White "Lavendelis, Egons"]
[Black "Vedrickiene, Jovita"]
[Result "1-0"]
[WhiteElo "2292"]
[BlackElo "2036"]
[PlyCount "49"]
[EventDate "2019.08.05"]
[EventType "swiss"]
[EventCountry "LAT"]
[TimeControl "5400+30"]
[WhiteClock "0:01:07"]
[BlackClock "0:08:50"]

1. e4 {[%emt 1:15:22]} c5 {[%emt 1:17:14]} 2. Nf3 {[%emt 0:00:27]} Nc6 {[%emt 0:00:28]} 3. Bb5 {[%emt 0:00:29]} Na5 {[%emt 0:00:28]} 4. c3 {[%emt 0:00:35]} a6 {[%emt 0:00:28]} 5. Ba4 {[%emt 0:00:27]} b5 {[%emt 0:00:30]} 6. Bc2 {[%emt 0:00:27]} Bb7 {[%emt 0:00:28]} 7. O-O {[%emt 0:00:28]} d6 {[%emt 0:00:28]} 8. d4 {[%emt 0:00:38]} cxd4 {[%emt 0:00:27]} 9. cxd4 {[%emt 0:00:27]} Rc8 {[%emt 0:00:33]} 10. Bd3 {[%emt 0:01:06]} Nf6 {[%emt 0:00:53]} 11. Re1 {[%emt 0:00:28]} e6 {[%emt 0:01:26]} 12. b3 {[%emt 0:00:32]} Be7 {[%emt 0:00:42]} 13. Bb2 {[%emt 0:00:27]} O-O {[%emt 0:00:44]} 14. Nc3 {[%emt 0:02:34]} Nc6 {[%emt 0:00:29]} 15. Rc1 {[%emt 0:00:37]} Nd7 {[%emt 0:04:21]} 16. Bb1 {[%emt 0:00:56]} f5 {[%emt 0:01:12]} 17. exf5 {[%emt 0:01:15]} exf5 {[%emt 0:00:28]} 18. Nd5 {[%emt 0:00:27]} Bf6 {[%emt 0:01:58]} 19. Bxf5 {[%emt 0:00:59]} Ne7 {[%emt 0:02:44]} 20. Nxf6+ {[%emt 0:01:36]} Nxf6 {[%emt 0:01:19]} 21. Bxc8 {[%emt 0:00:37]} Bxc8 {[%emt 0:00:27]} 22. Ng5 {[%emt 0:01:00]} Ng4 {[%emt 0:01:17]} 23. f3 {[%emt 0:00:32]} Nd5 {[%emt 0:01:03]} 24. Rxc8 {[%emt 0:00:47]} Qxc8 {[%emt 0:00:46]} 25. fxg4 {[%emt 0:00:27]} 1-0

[Event "9th RTU Rapid 2019"]
[Site "Riga"]
[Date "2019.08.04"]
[Round "5.17"]
[White "Martynyuk, Elizaveta"]
[Black "Grinev, Valeriy"]
[Result "0-1"]
[WhiteElo "2125"]
[BlackElo "2287"]
[PlyCount "104"]
[EventDate "2019.08.05"]
[EventType "swiss"]
[EventCountry "LAT"]
[TimeControl "5400+30"]
[WhiteClock "0:07:49"]
[BlackClock "0:00:07"]

1. e4 {[%emt 1:15:21]} c5 {[%emt 1:15:25]} 2. Nf3 {[%emt 0:00:27]} e6 {[%emt 0:00:27]} 3. d4 {[%emt 0:00:27]} cxd4 {[%emt 0:00:29]} 4. Nxd4 {[%emt 0:00:27]} a6 {[%emt 0:00:27]} 5. Bd3 {[%emt 0:00:27]} Bc5 {[%emt 0:00:27]} 6. Nb3 {[%emt 0:00:27]} Be7 {[%emt 0:00:28]} 7. Qg4 {[%emt 0:00:34]} g6 {[%emt 0:00:29]} 8. Qe2 {[%emt 0:00:29]} d6 {[%emt 0:00:27]} 9. Nc3 {[%emt 0:00:44]} Nd7 {[%emt 0:00:30]} 10. a4 {[%emt 0:00:34]} b6 {[%emt 0:00:28]} 11. O-O {[%emt 0:00:53]} Bb7 {[%emt 0:00:28]} 12. f4 {[%emt 0:04:25]} Ngf6 {[%emt 0:00:29]} 13. f5 {[%emt 0:00:30]} gxf5 {[%emt 0:00:30]} 14. exf5 {[%emt 0:00:31]} e5 {[%emt 0:00:27]} 15. Ne4 {[%emt 0:00:37]} Bxe4 {[%emt 0:00:37]} 16. Bxe4 {[%emt 0:00:30]} d5 {[%emt 0:00:30]} 17. Bd3 {[%emt 0:00:43]} Qc8 {[%emt 0:00:59]} 18. Bh6 {[%emt 0:01:21]} e4 {[%emt 0:00:41]} 19. Rae1 {[%emt 0:00:30]} Ne5 {[%emt 0:01:02]} 20. Bf4 {[%emt 0:01:52]} Nfd7 {[%emt 0:01:15]} 21. Bxe5 {[%emt 0:02:30]} Nxe5 {[%emt 0:00:28]} 22. f6 {[%emt 0:00:31]} Bd6 {[%emt 0:00:35]} 23. Qh5 {[%emt 0:00:52]} Qg4 {[%emt 0:01:08]} 24. Qxg4 {[%emt 0:01:34]} Nxg4 {[%emt 0:00:27]} 25. Kh1 {[%emt 0:00:59]} Be5 {[%emt 0:01:42]} 26. Bxe4 {[%emt 0:00:47]} dxe4 {[%emt 0:00:28]} 27. Rxe4 {[%emt 0:00:27]} h5 {[%emt 0:00:28]} 28. h3 {[%emt 0:00:33]} O-O-O {[%emt 0:00:48]} 29. hxg4 {[%emt 0:00:32]} hxg4+ {[%emt 0:00:27]} 30. Kg1 {[%emt 0:00:28]} Bxb2 {[%emt 0:00:45]} 31. Rxg4 {[%emt 0:00:33]} Rd6 {[%emt 0:00:35]} 32. c3 {[%emt 0:01:03]} Rc6 {[%emt 0:00:57]} 33. Nd4 {[%emt 0:00:45]} Rxc3 {[%emt 0:00:42]} 34. Nf5 {[%emt 0:00:46]} Ba3 {[%emt 0:00:53]} 35. Rff4 {[%emt 0:00:44]} Bc5+ {[%emt 0:00:37]} 36. Kf1 {[%emt 0:00:27]} Rc2 {[%emt 0:00:59]} 37. Rh4 {[%emt 0:01:13]} Rxh4 {[%emt 0:00:38]} 38. Nxh4 {[%emt 0:00:28]} b5 {[%emt 0:00:27]} 39. axb5 {[%emt 0:00:35]} axb5 {[%emt 0:00:27]} 40. g4 {[%emt 0:00:37]} b4 {[%emt 0:00:38]} 41. Ke1 {[%emt 0:00:46]} b3 {[%emt 0:01:29]} 42. Kd1 {[%emt 0:00:28]} Ba3 {[%emt 0:00:46]} 43. Nf3 {[%emt 0:01:38]} Rc1+ {[%emt 0:00:29]} 44. Ke2 {[%emt 0:00:28]} b2 {[%emt 0:00:37]} 45. Nd2 {[%emt 0:00:34]} Rc2 {[%emt 0:00:28]} 46. Rf1 {[%emt 0:00:33]} Bb4 {[%emt 0:00:30]} 47. Rb1 {[%emt 0:00:33]} Rxd2+ {[%emt 0:00:31]} 48. Ke3 {[%emt 0:00:27]} Rg2 {[%emt 0:00:34]} 49. g5 {[%emt 0:00:34]} Bc3 {[%emt 0:00:35]} 50. Kd3 {[%emt 0:00:29]} Be5 {[%emt 0:00:28]} 51. Re1 {[%emt 0:00:38]} Rxg5 {[%emt 0:00:30]} 52. Ke4 {[%emt 0:00:32]} Bxf6 {[%emt 0:00:30]} 0-1

[Event "9th RTU Rapid 2019"]
[Site "Riga"]
[Date "2019.08.04"]
[Round "5.18"]
[White "Solomka, Nikita"]
[Black "Dubrovin, Robert"]
[Result "0-1"]
[WhiteElo "1892"]
[BlackElo "2282"]
[PlyCount "92"]
[EventDate "2019.08.05"]
[EventType "swiss"]
[EventCountry "LAT"]
[TimeControl "5400+30"]
[WhiteClock "0:00:45"]
[BlackClock "0:00:39"]

1. d4 {[%emt 1:15:23]} Nf6 {[%emt 1:15:20]} 2. Nf3 {[%emt 0:00:27]} g6 {[%emt 0:00:28]} 3. Bf4 {[%emt 0:00:27]} Bg7 {[%emt 0:00:27]} 4. e3 {[%emt 0:00:27]} O-O {[%emt 0:00:26]} 5. h3 {[%emt 0:00:26]} c5 {[%emt 0:00:38]} 6. c3 {[%emt 0:00:27]} b6 {[%emt 0:00:25]} 7. Nbd2 {[%emt 0:00:27]} Bb7 {[%emt 0:00:26]} 8. Be2 {[%emt 0:00:27]} d6 {[%emt 0:00:27]} 9. O-O {[%emt 0:00:28]} Nbd7 {[%emt 0:00:26]} 10. Bh2 {[%emt 0:00:27]} Re8 {[%emt 0:00:42]} 11. Re1 {[%emt 0:00:34]} a6 {[%emt 0:00:34]} 12. a4 {[%emt 0:00:26]} Ne4 {[%emt 0:01:06]} 13. Nxe4 {[%emt 0:00:05]} Bxe4 14. Nd2 {[%emt 0:00:54]} Bb7 {[%emt 0:01:05]} 15. Bf3 {[%emt 0:00:27]} Qc7 {[%emt 0:00:31]} 16. Qb3 {[%emt 0:00:37]} Bxf3 {[%emt 0:00:37]} 17. Nxf3 {[%emt 0:00:27]} Qb7 {[%emt 0:01:30]} 18. Ng5 {[%emt 0:02:02]} d5 {[%emt 0:00:56]} 19. Qa3 {[%emt 0:01:36]} e5 {[%emt 0:00:48]} 20. Nf3 {[%emt 0:00:52]} Rac8 {[%emt 0:01:23]} 21. Rac1 {[%emt 0:00:34]} e4 {[%emt 0:00:59]} 22. Nd2 {[%emt 0:00:27]} Nf8 {[%emt 0:01:14]} 23. b4 {[%emt 0:00:52]} c4 {[%emt 0:00:41]} 24. Rb1 {[%emt 0:02:22]} Ne6 {[%emt 0:00:29]} 25. b5 {[%emt 0:00:38]} a5 {[%emt 0:00:29]} 26. Qc1 {[%emt 0:00:56]} f5 {[%emt 0:00:29]} 27. Nf1 {[%emt 0:01:02]} Qf7 {[%emt 0:00:49]} 28. f3 {[%emt 0:01:00]} Bh6 {[%emt 0:01:22]} 29. Be5 {[%emt 0:00:54]} f4 {[%emt 0:02:49]} 30. fxe4 {[%emt 0:01:07]} dxe4 {[%emt 0:00:27]} 31. Nh2 {[%emt 0:01:27]} f3 {[%emt 0:02:00]} 32. Rf1 {[%emt 0:01:10]} Nc5 {[%emt 0:01:01]} 33. Ng4 {[%emt 0:00:51]} Bg5 {[%emt 0:01:04]} 34. dxc5 {[%emt 0:00:56]} h5 {[%emt 0:00:26]} 35. gxf3 {[%emt 0:01:06]} exf3 {[%emt 0:01:34]} 36. Bf6 {[%emt 0:00:46]} Rxc5 {[%emt 0:00:26]} 37. Bxg5 {[%emt 0:00:41]} hxg4 {[%emt 0:00:28]} 38. Bf4 {[%emt 0:00:43]} g5 {[%emt 0:00:30]} 39. Bg3 {[%emt 0:00:33]} Qh5 {[%emt 0:01:08]} 40. Qc2 {[%emt 0:01:29]} Rxe3 {[%emt 0:01:25]} 41. hxg4 {[%emt 0:00:50]} Qxg4 {[%emt 0:01:24]} 42. Qg6+ {[%emt 0:01:02]} Kh8 {[%emt 0:00:26]} 43. Qf6+ {[%emt 0:01:02]} Kg8 {[%emt 0:00:28]} 44. Qd8+ {[%emt 0:00:59]} Kh7 {[%emt 0:00:35]} 45. Qb8 {[%emt 0:00:42]} Rce5 {[%emt 0:00:43]} 46. Rbd1 {[%emt 0:00:46]} Qxg3+ {[%emt 0:00:34]} 0-1